fUST/lending_fUST_20240729
["ID","MTS","AMOUNT","RATE_DAILY","PERIOD"]
[333535429,1722235843511,-91.2706135,0.00014963,2]
[333535923,1722235848368,-408.7293865,0.00014963,2]
[333535925,1722235848378,-500.0,0.00014963,2]
[333535927,1722235848388,-500.0,0.00014963,2]
[333535929,1722235848397,-500.0,0.00014963,2]
[333535931,1722235848407,-500.0,0.00014963,2]
[333535934,1722235848418,-500.0,0.00014963,2]
[333535936,1722235848428,-471.38035,0.00014963,2]
[333535938,1722235848437,-2498.91,0.00014963,2]
[333535940,1722235848447,-721.73,0.00014963,2]
[333535942,1722235848457,-226.56,0.00014963,2]
[333535944,1722235848467,-921.66,0.00014963,2]
[333535946,1722235848476,-159.48,0.00014963,2]
[333535948,1722235848486,-500.0,0.00014963,2]
[333535950,1722235848495,-500.0,0.00014963,2]
[333535952,1722235848504,-500.0,0.00014963,2]
[333535954,1722235848514,-235.65,0.00014963,2]
[333535956,1722235848523,-333.23,0.00014963,2]
[333535958,1722235848535,-245.93,0.00014963,2]
[333535960,1722235848544,-500.0,0.00014963,2]
[333535962,1722235848552,-353.93,0.00014963,2]
[333535964,1722235848561,-500.0,0.00014963,2]
[333535966,1722235848570,-150.112233,0.00015,2]
[333535968,1722235848579,-381.83579462,0.00015,2]
[333535970,1722235848589,-262.47222371,0.00015,2]
[333535972,1722235848599,-150.112233,0.00015,2]
[333535974,1722235848608,-154.71377951,0.00015,2]
[333535976,1722235848618,-150.112233,0.00015,2]
[333535978,1722235848627,-1115.45176667,0.00015,2]
[333536000,1722235848831,-9606.37095342,0.00015,2]
[333538183,1722236828108,-182.093151,0.00012986,2]
[333538184,1722236828130,-302.329976,0.00014247,2]
[333538185,1722236828152,-510.88601513,0.00014499,2]
[333538186,1722236828175,-326.55139119,0.00014499,2]
[333538187,1722236832108,-173.44860881,0.00014499,2]
[333538188,1722236832129,-202.86669858,0.00014499,2]
[333538189,1722236832151,-282.41597141,0.00014499,2]
[333538190,1722236832173,-106.73268521,0.000145,7]
[333538191,1722236835106,-2693.38113078,0.000145,7]
[333538192,1722236856612,-8638.71181716,0.000145,7]
[333538193,1722236896941,-76261.93283899,0.000145,7]
[333538207,1722237034429,-997.05321696,0.00014489,2]
[333538208,1722237034439,-300.0,0.00014499,2]
[333538210,1722237034453,-300.0,0.00014499,2]
[333538212,1722237034463,-5619.24999396,0.000145,2]
[333538214,1722237034475,-305.84891193,0.000145,2]
[333538222,1722237034563,-845.87799758,0.000145,2]
[333538250,1722237040051,272.81268843,0.00013575,2]
[333538251,1722237040074,1000.0,0.00013575,2]
[333538277,1722237040360,-921.58466037,0.00013575,2]
[333538280,1722237040380,-2509.6484988,0.00013575,2]
[333538282,1722237040393,-828.76604397,0.000145,2]
[333538285,1722237040406,-628.30420883,0.000145,2]
[333538287,1722237040420,-2677.79205462,0.000145,2]
[333538289,1722237040432,-401.536873,0.000145,2]
[333538292,1722237040445,-628.30420879,0.00014522,2]
[333538294,1722237040457,-628.30420879,0.00014544,2]
[333538296,1722237040467,-628.30420879,0.00014566,2]
[333538298,1722237040477,-628.30420879,0.00014588,2]
[333538300,1722237040490,-547.69117999,0.00014589,2]
[333538302,1722237040502,-357.62021059,0.00014589,2]
[333538305,1722237040515,-73452.4785107,0.0001459,2]
[333538307,1722237040527,-5994.98131452,0.000146,5]
[333538309,1722237040540,-146372.31540696,0.000146,2]
[333538311,1722237040552,-58089.47624362,0.00014679,2]
[333538316,1722237040580,-511.1056432,0.00014679,2]
[333538318,1722237040594,-5847.70486315,0.00014679,2]
[333538321,1722237040609,-9004.19176073,0.00014679,2]
[333538323,1722237040620,-502.42193957,0.00014688,2]
[333538325,1722237040632,-500.0,0.00014688,2]
[333538327,1722237040643,-500.0,0.00014688,2]
[333538329,1722237040654,-525.23997545,0.00014688,2]
[333538332,1722237040665,-500.0,0.00014688,2]
[333538334,1722237040677,-500.86036094,0.00014688,2]
[333538336,1722237040687,-500.0,0.00014688,2]
[333538338,1722237040698,-500.0,0.00014688,2]
[333538340,1722237040709,-517.26989809,0.00014688,2]
[333538343,1722237040720,-500.0,0.00014688,2]
[333538345,1722237040731,-150.87839597,0.00014688,2]
[333538347,1722237040743,-500.0,0.00014688,2]
[333538349,1722237040754,-500.0,0.00014688,2]
[333538351,1722237040765,-500.0,0.00014688,2]
[333538354,1722237040776,-500.0,0.00014688,2]
[333538356,1722237040786,-500.0,0.00014688,2]
[333538358,1722237040796,-384.65,0.00014688,2]
[333538360,1722237040807,-500.0,0.00014688,2]
[333538362,1722237040818,-500.0,0.00014688,2]
[333538364,1722237040829,-500.0,0.00014688,2]
[333538366,1722237040839,-232.37961906,0.00014688,2]
[333538632,1722237043565,-268.55025728,0.00014688,2]
[333538634,1722237043574,-501.45160019,0.00014688,2]
[333538636,1722237043584,-500.0,0.00014688,2]
[333538638,1722237043594,-500.0,0.00014688,2]
[333538640,1722237043604,-500.0,0.00014688,2]
[333538642,1722237043614,-844.86,0.00014688,2]
[333538644,1722237043623,-502.05441623,0.00014688,2]
[333538646,1722237043632,-500.0,0.00014688,2]
[333538648,1722237043642,-500.0,0.00014688,2]
[333538650,1722237043651,-263.6496021,0.00014688,2]
[333538652,1722237043661,-500.0,0.00014688,2]
[333538654,1722237043671,-500.0,0.00014688,2]
[333538656,1722237043680,-500.0,0.00014688,2]
[333538658,1722237043689,-279.64137609,0.00014688,2]
[333538660,1722237043699,-464.10296332,0.00014688,2]
[333544085,1722237484710,813.00772694,9.999e-05,2]
[333544086,1722237511482,2105.64876424,9.999e-05,2]
[333544087,1722237511514,16276.9865334,9.999e-05,2]
[333544088,1722237514455,1343.96366271,9.999e-05,2]
[333544090,1722237578884,2000.0,0.0002335,120]
[333544091,1722237592039,982.67728173,9.999e-05,2]
[333544092,1722237614882,521.74223491,9.999e-05,2]
[333544094,1722237702541,426.64571982,9.999e-05,2]
[333544095,1722237713039,426.64571982,9.999e-05,2]
[333544099,1722237825548,426.64571982,9.999e-05,2]
[333544100,1722237839078,154.8274055,9.999e-05,2]
[333544101,1722237841141,248.79433742,9.999e-05,2]
[333544102,1722237846424,520.09696414,9.999e-05,2]
[333544103,1722237853731,813.00772694,9.999e-05,2]
[333544104,1722237864503,162.54192868,9.999e-05,2]
[333544105,1722237871838,663.78880537,9.999e-05,2]
[333544106,1722237895286,187.64804383,9.999e-05,2]
[333544107,1722237925066,426.64571982,9.999e-05,2]
[333544108,1722237928071,1361.22807536,9.999e-05,2]
[333544109,1722237931374,11840.92678731,9.999e-05,2]
[333544110,1722237934763,806.41574985,9.999e-05,2]
[333544111,1722237940920,162.01610642,9.999e-05,2]
[333544113,1722237958541,14539.54247196,9.999e-05,2]
[333544114,1722237961490,248.81385722,9.999e-05,2]
[333544115,1722237973801,520.97045086,9.999e-05,2]
[333544116,1722237982859,848.82145141,9.999e-05,2]
[333544117,1722237992930,154.9554966,9.999e-05,2]
[333544118,1722238003435,519.32929432,9.999e-05,2]
[333544119,1722238009059,426.64571982,9.999e-05,2]
[333544120,1722238013051,288.23515322,9.999e-05,2]
[333544121,1722238022767,403.88474617,9.999e-05,2]
[333544122,1722238025185,156.28069867,9.999e-05,2]
[333544123,1722238025313,792.39465993,9.999e-05,2]
[333544124,1722238026156,793.95241549,9.999e-05,2]
[333544125,1722238045109,-174.81,0.00010959,2]
[333544126,1722238045132,-300.0,0.00012119,2]
[333544127,1722238045154,-111.41954862,0.00012119,2]
[333544128,1722238045273,162.95665863,9.999e-05,2]
[333544129,1722238050073,154.84017474,9.999e-05,2]
[333544130,1722238051101,-188.58045138,0.00012119,2]
[333544131,1722238051122,-570.62290429,0.0001212,2]
[333544132,1722238051143,-161.7393251,0.0001212,2]
[333544133,1722238051165,-375.79677847,0.0001212,2]
[333544134,1722238051186,-94.73720756,0.0001212,2]
[333544135,1722238058642,156.62454437,9.999e-05,2]
[333544137,1722238063100,196.33497966,9.999e-05,2]
[333544138,1722238085711,154.84663327,9.999e-05,2]
[333544139,1722238088496,282.49137752,9.999e-05,2]
[333544140,1722238090335,154.84912894,0.0001,2]
[333544142,1722238095444,519.15340296,9.999e-05,2]
[333544143,1722238100116,154.68290005,9.999e-05,2]
[333544144,1722238100473,220.06890851,9.999e-05,2]
[333544145,1722238101786,785.33875676,9.999e-05,2]
[333544148,1722238106402,182.98285056,9.999e-05,2]
[333544149,1722238108074,155.09161659,9.999e-05,2]
[333544150,1722238115712,154.84663327,9.999e-05,2]
[333544151,1722238117818,727.02832733,9.999e-05,2]
[333544152,1722238119686,154.86920409,9.999e-05,2]
[333544153,1722238120033,793.95241549,9.999e-05,2]
[333544155,1722238120533,426.64571982,9.999e-05,2]
[333544156,1722238124278,310.11501072,9.999e-05,2]
[333544159,1722238130080,588.59630966,9.999e-05,2]
[333544160,1722238134685,154.86920409,9.999e-05,2]
[333544161,1722238135627,426.64571982,9.999e-05,2]
[333544163,1722238141869,848.96464521,9.999e-05,2]
[333544164,1722238144286,162.95665863,9.999e-05,2]
[333544165,1722238149179,200.11396864,9.999e-05,2]
[333544166,1722238149848,-2053.53252552,0.00012019,2]
[333544167,1722238149873,-300.0,0.00012119,2]
[333544168,1722238149899,-232.93216467,0.0001212,2]
[333544169,1722238149922,-265.46067178,0.0001212,2]
[333544170,1722238149947,-406.04755903,0.0001212,2]
[333544171,1722238149971,-154.84362136,0.0001212,2]
[333544172,1722238149995,-214.84485666,0.0001212,2]
[333544173,1722238150018,-542.48310742,0.0001212,2]
[333544174,1722238150043,-156.6131858,0.0001212,2]
[333544175,1722238150067,-218.34362609,0.0001212,2]
[333544176,1722238150091,-195.95298196,0.0001212,2]
[333544177,1722238150114,-2377.8484064,0.00012516,2]
[333544178,1722238150140,-150.112233,0.00013,2]
[333544179,1722238150167,-229.984785,0.00013049,2]
[333544180,1722238150195,-229.984785,0.00013085,2]
[333544181,1722238150221,-229.984785,0.00013121,2]
[333544182,1722238150247,-250.0,0.00013124,2]
[333544183,1722238150275,-229.984785,0.00013157,2]
[333544184,1722238150421,-229.984785,0.00013193,2]
[333544185,1722238150451,-229.984785,0.00013228,2]
[333544186,1722238150476,-229.984785,0.00013264,2]
[333544187,1722238150498,-229.984785,0.000133,2]
[333544188,1722238150520,-420.0,0.00013331,2]
[333544189,1722238150544,-229.984785,0.00013336,2]
[333544190,1722238150568,-229.984785,0.00013371,2]
[333544191,1722238150591,-229.984785,0.00013407,2]
[333544192,1722238150612,-229.984785,0.00013443,2]
[333544193,1722238150634,-229.984785,0.00013479,2]
[333544194,1722238150656,-229.984785,0.00013515,2]
[333544195,1722238150677,-229.984785,0.0001355,2]
[333544196,1722238150700,-229.984785,0.00013586,2]
[333544197,1722238150722,-229.984785,0.00013622,2]
[333544198,1722238150744,-229.984785,0.00013658,2]
[333544199,1722238150767,-229.984785,0.00013693,2]
[333544200,1722238150792,-106.43914685,0.00013729,2]
[333544201,1722238154344,727.02832733,0.0001212,2]
[333544202,1722238155530,-123.54563815,0.00013729,2]
[333544203,1722238155900,168.22778201,0.0001212,2]
[333544204,1722238159275,176.43256407,0.0001212,2]
[333544205,1722238159303,156.10448572,0.0001212,2]
[333544206,1722238159847,154.78770702,0.0001212,2]
[333544207,1722238166419,209.61899477,0.0001212,2]
[333544208,1722238166505,155.46744664,0.0001212,2]
[333544209,1722238166526,164.04071286,0.0001212,2]
[333544210,1722238167366,117.07725305,0.00010959,2]
[333544211,1722238169096,-616.766965,0.00010959,2]
[333544212,1722238174137,-74.44578195,0.00010959,2]
[333544213,1722238174158,-154.87856281,0.0001212,2]
[333544214,1722238174180,-287.213477,0.00014247,2]
[333544215,1722238175658,100.32797983,9.999e-05,2]
[333544216,1722238175683,54.55574615,9.999e-05,2]
[333544217,1722238180050,493.97936365,9.999e-05,2]
[333544221,1722238234012,154.76013108,9.999e-05,2]
[333544233,1722238234942,-673.57,0.00010959,2]
[333544234,1722238234952,-2741.9875904,0.00013635,2]
[333544235,1722238234962,-1417.4154446,0.00013729,2]
[333544321,1722238240986,-493.97936365,0.0001212,2]
[333544322,1722238240996,-408.26047269,0.00013728,2]
[333544323,1722238241006,-10574.3681653,0.00013729,2]
[333544324,1722238241016,-273.83979488,0.000146,2]
[333544325,1722238241025,-300.0,0.00014675,2]
[333544326,1722238241035,-250.33414742,0.00014677,2]
[333544327,1722238241044,-383.38382599,0.00014677,2]
[333544328,1722238241054,-300.0,0.00014677,2]
[333544329,1722238241064,-29380.9914043,0.00014678,2]
[333544330,1722238241073,-506.10302724,0.00014688,2]
[333544331,1722238241083,-500.0,0.00014688,2]
[333544332,1722238241092,-501.6702609,0.00014688,2]
[333544333,1722238241102,-504.89143223,0.00014688,2]
[333544334,1722238241112,-504.21082443,0.00014688,2]
[333544335,1722238241122,-500.0,0.00014688,2]
[333544336,1722238241133,-500.0,0.00014688,2]
[333544337,1722238241142,-501.17906568,0.00014688,2]
[333544338,1722238241153,-500.0,0.00014688,2]
[333544339,1722238241163,-500.0,0.00014688,2]
[333544340,1722238241172,-223.78235253,0.00014688,2]
[333544341,1722238241181,-500.0,0.00014688,2]
[333544342,1722238241191,-500.0,0.00014688,2]
[333544343,1722238241200,-504.84917829,0.00014688,2]
[333544344,1722238241210,-500.0,0.00014688,2]
[333544345,1722238241219,-500.0,0.00014688,2]
[333544346,1722238241229,-500.0,0.00014688,2]
[333544347,1722238241239,-500.0,0.00014688,2]
[333544348,1722238241248,-513.10565774,0.00014688,2]
[333544349,1722238241258,-500.0,0.00014688,2]
[333544350,1722238241267,-500.0,0.00014688,2]
[333544351,1722238241276,-542.70829802,0.00014688,2]
[333544352,1722238241286,-503.19716598,0.00014688,2]
[333544353,1722238241295,-500.0,0.00014688,2]
[333544354,1722238241305,-500.0,0.00014688,2]
[333544355,1722238241314,-503.89305881,0.00014688,2]
[333544356,1722238241324,-500.0,0.00014688,2]
[333544357,1722238241334,-500.0,0.00014688,2]
[333544358,1722238241343,-503.8064443,0.00014688,2]
[333544359,1722238241353,-314.58,0.00014688,2]
[333544360,1722238241363,-572.62151756,0.00014688,2]
[333544361,1722238241373,-503.25473064,0.00014688,2]
[333544362,1722238241384,-500.0,0.00014688,2]
[333544363,1722238241393,-500.0,0.00014688,2]
[333544364,1722238241407,-497.88815014,0.00014688,2]
[333544365,1722238241416,-500.0,0.00014688,2]
[333544366,1722238241523,-507.41428649,0.00014688,2]
[333544367,1722238241533,-516.68040436,0.00014688,2]
[333544368,1722238241543,-500.0,0.00014688,2]
[333544369,1722238241552,-505.44286173,0.00014688,2]
[333544370,1722238241562,-504.27712946,0.00014688,2]
[333544371,1722238241574,-503.67364625,0.00014688,2]
[333544372,1722238241585,-500.0,0.00014688,2]
[333544373,1722238241596,-500.0,0.00014688,2]
[333544374,1722238241606,-500.0,0.00014688,2]
[333544375,1722238241616,-500.0,0.00014688,2]
[333544376,1722238241626,-151.0,0.00014688,2]
[333544377,1722238241635,-501.31803318,0.00014688,2]
[333544378,1722238241645,-500.0,0.00014688,2]
[333544379,1722238241655,-500.0,0.00014688,2]
[333544380,1722238241665,-500.0,0.00014688,2]
[333544381,1722238241675,-500.0,0.00014688,2]
[333544382,1722238241686,-316.18399748,0.00014688,2]
[333544404,1722238244482,-561.31,0.00010959,2]
[333544405,1722238244492,-187.61106419,0.00014688,2]
[333544406,1722238244501,-500.0,0.00014688,2]
[333544407,1722238244513,-629.67605638,0.00014688,2]
[333544408,1722238244523,-151.0,0.00014688,2]
[333544409,1722238244535,-500.68249841,0.00014688,2]
[333544410,1722238244546,-513.98845385,0.00014688,2]
[333544411,1722238244556,-504.17191187,0.00014688,2]
[333544412,1722238244567,-160.2,0.00014688,2]
[333544413,1722238244577,-500.0,0.00014688,2]
[333544414,1722238244586,-501.38770988,0.00014688,2]
[333544415,1722238244595,-500.0,0.00014688,2]
[333544416,1722238244605,-151.0,0.00014688,2]
[333544417,1722238244614,-501.07643185,0.00014688,2]
[333544418,1722238244623,-500.0,0.00014688,2]
[333544419,1722238244636,-509.40422929,0.00014688,2]
[333544420,1722238244646,-105.67042809,0.00014688,2]
[333544421,1722238244659,-394.32957191,0.00014688,2]
[333544422,1722238244668,-500.0,0.00014688,2]
[333544423,1722238244678,-500.0,0.00014688,2]
[333544424,1722238244687,-540.22072997,0.00014688,2]
[333544425,1722238244697,-500.0,0.00014688,2]
[333544426,1722238244706,-27.97942149,0.00014688,2]
[333544436,1722238246742,-472.02057851,0.00014688,2]
[333544437,1722238246751,-500.0,0.00014688,2]
[333544438,1722238246762,-500.0,0.00014688,2]
[333544439,1722238246771,-516.26547321,0.00014688,2]
[333544440,1722238246780,-500.0,0.00014688,2]
[333544441,1722238246790,-500.0,0.00014688,2]
[333544442,1722238246801,-505.61352772,0.00014688,2]
[333544443,1722238246810,-500.67064259,0.00014688,2]
[333544444,1722238246824,-500.0,0.00014688,2]
[333544445,1722238246840,-500.0,0.00014688,2]
[333544446,1722238246851,-500.48716057,0.00014688,2]
[333544447,1722238246862,-500.0,0.00014688,2]
[333544448,1722238246872,-500.0,0.00014688,2]
[333544449,1722238246884,-500.00000001,0.00014688,2]
[333544450,1722238246894,-500.0,0.00014688,2]
[333544451,1722238246903,-500.0,0.00014688,2]
[333544452,1722238246913,-505.39626504,0.00014688,2]
[333544453,1722238246923,-500.0,0.00014688,2]
[333544454,1722238246933,-500.0,0.00014688,2]
[333544455,1722238246944,-500.0,0.00014688,2]
[333544456,1722238246956,-500.0,0.00014688,2]
[333544457,1722238246966,-500.0,0.00014688,2]
[333544458,1722238246975,-500.0,0.00014688,2]
[333544459,1722238246984,-501.95535391,0.00014688,2]
[333544460,1722238246994,-186.58567742,0.00014688,2]
[333544461,1722238247004,-500.0,0.00014688,2]
[333544462,1722238247013,-506.14814284,0.00014688,2]
[333544463,1722238247023,-500.0,0.00014688,2]
[333544464,1722238247032,-500.0,0.00014688,2]
[333544465,1722238247041,-500.0,0.00014688,2]
[333544466,1722238247051,-502.40485795,0.00014688,2]
[333544467,1722238247061,-500.0,0.00014688,2]
[333544468,1722238247070,-500.0,0.00014688,2]
[333544469,1722238247079,-524.43328992,0.00014688,2]
[333544470,1722238247090,-500.0,0.00014688,2]
[333544471,1722238247099,-503.60558488,0.00014688,2]
[333544472,1722238247109,-500.0,0.00014688,2]
[333544473,1722238247119,-500.0,0.00014688,2]
[333544474,1722238247129,-500.0,0.00014688,2]
[333544475,1722238247138,-500.0,0.00014688,2]
[333544476,1722238247147,-500.0,0.00014688,2]
[333544477,1722238247156,-528.95096234,0.00014688,2]
[333544478,1722238247166,-500.0,0.00014688,2]
[333544479,1722238247175,-500.0,0.00014688,2]
[333544480,1722238247185,-500.0,0.00014688,2]
[333544481,1722238247194,-500.0,0.00014688,2]
[333544482,1722238247203,-500.0,0.00014688,2]
[333544483,1722238247213,-517.94466049,0.00014688,2]
[333544484,1722238247224,-432.82351039,0.00014688,2]
[333544485,1722238247234,-500.0,0.00014688,2]
[333544486,1722238247244,-500.0,0.00014688,2]
[333544487,1722238247255,-376.6159462,0.00014688,2]
[333544488,1722238247266,-500.0,0.00014688,2]
[333544489,1722238247276,-175.39455562,0.00014688,2]
[333544490,1722238247285,-500.0,0.00014688,2]
[333544491,1722238247294,-500.0,0.00014688,2]
[333544492,1722238247303,-500.0,0.00014688,2]
[333544493,1722238247313,-500.0,0.00014688,2]
[333544494,1722238247322,-500.0,0.00014688,2]
[333544495,1722238247332,-500.0,0.00014688,2]
[333544496,1722238247341,-500.0,0.00014688,2]
[333544497,1722238247351,-500.0,0.00014688,2]
[333544498,1722238247360,-500.0,0.00014688,2]
[333544499,1722238247369,-115.61158005,0.00014688,2]
[333544500,1722238247572,-384.38841995,0.00014688,2]
[333544501,1722238247582,-640.2,0.00014688,2]
[333544502,1722238247592,-500.0,0.00014688,2]
[333544503,1722238247602,-383.2498869,0.00014688,2]
[333544504,1722238247611,-506.03907109,0.00014688,2]
[333544505,1722238247620,-500.0,0.00014688,2]
[333544506,1722238247632,-500.0,0.00014688,2]
[333544507,1722238247642,-629.24943078,0.00014688,2]
[333544508,1722238247651,-500.0,0.00014688,2]
[333544509,1722238247663,-500.0,0.00014688,2]
[333544510,1722238247672,-500.0,0.00014688,2]
[333544511,1722238247681,-500.0,0.00014688,2]
[333544512,1722238247691,-500.0,0.00014688,2]
[333544513,1722238247700,-500.0,0.00014688,2]
[333544514,1722238247709,-500.0,0.00014688,2]
[333544515,1722238247718,-500.0,0.00014688,2]
[333544516,1722238247727,-618.03,0.00014688,2]
[333544517,1722238247737,-503.25740556,0.00014688,2]
[333544518,1722238247747,-500.0,0.00014688,2]
[333544519,1722238247756,-500.0,0.00014688,2]
[333544520,1722238247765,-503.92135759,0.00014688,2]
[333544521,1722238247775,-218.18326497,0.00014688,2]
[333544522,1722238247785,-255.15035679,0.00014688,2]
[333544523,1722238247794,-376.2320851,0.00014688,2]
[333544524,1722238937080,565.56041639,9.999e-05,2]
[333544525,1722239006955,848.97873388,9.999e-05,2]
[333544526,1722239007952,217.5531102,9.999e-05,2]
[333544527,1722239018899,154.71377951,9.999e-05,2]
[333544528,1722239053754,4710.31587082,9.999e-05,2]
[333544529,1722239084214,342.40544478,9.999e-05,2]
[333544530,1722239085981,6196.66489007,9.999e-05,2]
[333544531,1722239106857,162.75121245,9.999e-05,2]
[333544532,1722239111547,283.44188651,9.999e-05,2]
[333544533,1722239139514,426.64571982,9.999e-05,2]
[333544534,1722239149772,322.18975679,9.999e-05,2]
[333544535,1722239167835,403.53391544,9.999e-05,2]
[333544536,1722239241120,-469.31215019,0.00010859,2]
[333544537,1722239241146,-3.31864239,0.00010958,2]
[333544538,1722239244133,-296.68135761,0.00010958,2]
[333544539,1722239244159,-198.61,0.00010959,2]
[333544540,1722239244182,-461.12,0.00010959,2]
[333544541,1722239244204,-384.26,0.00010959,2]
[333544542,1722239244228,-291.59923252,0.00010959,2]
[333544569,1722239264022,206.24082542,9.999e-05,2]
[333544577,1722239270112,426.64571982,9.999e-05,2]
[333544580,1722239281840,402.80903203,9.999e-05,2]
[333544589,1722239331071,319.54991411,9.999e-05,2]
[333544590,1722239349127,-271.62,0.00010959,2]
[333544591,1722239349149,-226.35,0.00010959,2]
[333544592,1722239349171,-2167.01991563,0.00010959,2]
[333544593,1722239349195,-154.96858012,0.00010959,2]
[333544594,1722239349220,-200.0,0.00011,2]
[333544595,1722239349240,-9566.23980276,0.0001212,2]
[333544596,1722239349266,-249.7508542,0.00012167,2]
[333544597,1722239349287,-400.0,0.0001237,2]
[333544598,1722239349309,-187.5,0.0001243,2]
[333544599,1722239349331,-187.5,0.00012646,2]
[333544600,1722239349355,-187.5,0.00012862,2]
[333544601,1722239349379,-187.5,0.00013078,2]
[333544602,1722239350371,294.74233588,0.0001212,2]
[333544603,1722239351111,-348.31694634,0.00013283,2]
[333544604,1722239351134,-166.93497584,0.00013283,2]
[333544605,1722239351159,-1625.30319851,0.00013283,2]
[333544606,1722239351198,-600.0,0.00014147,2]
[333544607,1722239351221,-272.852803,0.00014247,2]
[333544608,1722239352882,155.54138296,0.0001212,2]
[333544609,1722239353984,188.63,0.00010959,2]
[333544610,1722239356498,493.97936365,9.999e-05,2]
[333544611,1722239358452,248.99645039,9.999e-05,2]
[333544612,1722239358475,478.15475412,9.999e-05,2]
[333544613,1722239364485,157.19,0.00010959,2]
[333544614,1722239376313,32.98303508,0.00010959,2]
[333544615,1722239376462,526.99812215,0.00010959,2]
[333544616,1722239376482,225.97884277,0.00010959,2]
[333544617,1722239388812,494.43096708,0.0001212,2]
[333544683,1722239438626,-961.48750703,0.0001212,2]
[333544684,1722239438638,-257.73071742,0.0001212,2]
[333544685,1722239438649,-732.73481642,0.0001212,2]
[333544686,1722239438660,-13075.7218031,0.00013658,2]
[333544687,1722239438670,-272.8127637,0.00014247,2]
[333544688,1722239438681,-931.98151977,0.00014588,2]
[333544689,1722239438690,-4106.08855824,0.00014588,2]
[333544690,1722239438700,-4106.08855823,0.00014596,2]
[333544691,1722239438709,-4106.08855823,0.00014604,2]
[333544692,1722239438719,-175.23390319,0.00014611,2]
[333544693,1722239438728,-268.3686782,0.00014611,2]
[333544695,1722239438739,-4106.08855823,0.00014612,2]
[333544696,1722239438749,-4106.08855823,0.0001462,2]
[333544697,1722239438759,-17492.81215441,0.00014673,2]
[333544698,1722239438770,-91661.4917557,0.00014678,2]
[333544699,1722239438779,-3465.09530459,0.00014688,5]
[333544700,1722239438788,-507.79757809,0.00014688,2]
[333544701,1722239438798,-500.34871515,0.00014688,2]
[333544702,1722239438808,-500.0,0.00014688,2]
[333544703,1722239438817,-502.63580816,0.00014688,2]
[333544704,1722239438826,-500.0,0.00014688,2]
[333544705,1722239438835,-500.0,0.00014688,2]
[333544706,1722239438845,-500.0,0.00014688,2]
[333544707,1722239438855,-500.0,0.00014688,2]
[333544708,1722239438865,-500.0,0.00014688,2]
[333544709,1722239438875,-500.0,0.00014688,2]
[333544710,1722239438884,-500.0,0.00014688,2]
[333544711,1722239438895,-418.50907211,0.00014688,2]
[333544712,1722239438905,-502.55898061,0.00014688,2]
[333544713,1722239438915,-500.0,0.00014688,2]
[333544714,1722239438924,-500.0,0.00014688,2]
[333544715,1722239438934,-500.0,0.00014688,2]
[333544716,1722239438944,-501.298653,0.00014688,2]
[333544717,1722239438955,-500.0,0.00014688,2]
[333544718,1722239438965,-500.0,0.00014688,2]
[333544719,1722239438975,-500.0,0.00014688,2]
[333544720,1722239438985,-500.0,0.00014688,2]
[333544721,1722239438995,-520.35812557,0.00014688,2]
[333544722,1722239439004,-500.0,0.00014688,2]
[333544723,1722239439013,-500.0,0.00014688,2]
[333544724,1722239439023,-500.0,0.00014688,2]
[333544725,1722239439033,-500.0,0.00014688,2]
[333544726,1722239439042,-505.95695251,0.00014688,2]
[333544727,1722239439052,-500.0,0.00014688,2]
[333544728,1722239439061,-500.0,0.00014688,2]
[333544729,1722239439072,-500.0,0.00014688,2]
[333544730,1722239439082,-500.0,0.00014688,2]
[333544731,1722239439092,-500.0,0.00014688,2]
[333544732,1722239439104,-534.58339201,0.00014688,2]